fUSD/lending_fUSD_20260610
["ID","MTS","AMOUNT","RATE_DAILY","PERIOD"]
[424637297,1781025042000,-1945.16112402,0.00013699,2]
[424637296,1781025042000,-1945.16112402,0.00013699,2]
[424637298,1781025042000,-1945.16112402,0.00013699,2]
[424637240,1781025042000,-1984.85828981,0.00013699,2]
[424637271,1781025042000,-1984.85828981,0.00013699,2]
[424637266,1781025042000,-1984.85828981,0.00013699,2]
[424637276,1781025042000,-489.961075,0.00013699,2]
[424637260,1781025042000,-1984.85828981,0.00013699,2]
[424637262,1781025042000,-1984.85828981,0.00013699,2]
[424637241,1781025042000,-1984.85828981,0.00013699,2]
[424637238,1781025042000,-1984.85828981,0.00013699,2]
[424637233,1781025042000,-1984.85828981,0.00013699,2]
[424637239,1781025042000,-1984.85828981,0.00013699,2]
[424637235,1781025042000,-1984.85828981,0.00013699,2]
[424637242,1781025042000,-1984.85828981,0.00013699,2]
[424637244,1781025042000,-1984.85828981,0.00013699,2]
[424637255,1781025042000,-1984.85828981,0.00013699,2]
[424637257,1781025042000,-1984.85828981,0.00013699,2]
[424637243,1781025042000,-1984.85828981,0.00013699,2]
[424637251,1781025042000,-1984.85828981,0.00013699,2]
[424637245,1781025042000,-1984.85828981,0.00013699,2]
[424637237,1781025042000,-1984.85828981,0.00013699,2]
[424637247,1781025042000,-1984.85828981,0.00013699,2]
[424637248,1781025042000,-1984.85828981,0.00013699,2]
[424637261,1781025042000,-1984.85828981,0.00013699,2]
[424637269,1781025042000,-1984.85828981,0.00013699,2]
[424637267,1781025042000,-1984.85828981,0.00013699,2]
[424637268,1781025042000,-1984.85828981,0.00013699,2]
[424637263,1781025042000,-1984.85828981,0.00013699,2]
[424637264,1781025042000,-1984.85828981,0.00013699,2]
[424637259,1781025042000,-1984.85828981,0.00013699,2]
[424637253,1781025042000,-1984.85828981,0.00013699,2]
[424637249,1781025042000,-1984.85828981,0.00013699,2]
[424637246,1781025042000,-1984.85828981,0.00013699,2]
[424637265,1781025042000,-1984.85828981,0.00013699,2]
[424637339,1781025043000,-160.0,0.000145,2]
[424637340,1781025043000,-151.0,0.00014502,2]
[424637334,1781025043000,-500.0,0.00014137,2]
[424637326,1781025043000,-5883.15052574,0.00013853,2]
[424637337,1781025043000,-8459.0,0.00014365,2]
[424637335,1781025043000,-160.0,0.000143,2]
[424637333,1781025043000,-306.73861989,0.00014123,2]
[424637327,1781025043000,-160.0,0.000139,2]
[424637328,1781025043000,-250.0,0.00014,2]
[424637341,1781025043000,-151.0,0.00014502,2]
[424637338,1781025043000,-187.90066,0.00014365,2]
[424637342,1781025043000,-151.0,0.00014502,2]
[424637353,1781025043000,-489.961079,0.00014502,2]
[424637345,1781025043000,-5257.394979,0.00014502,2]
[424637346,1781025043000,-5257.394979,0.00014502,2]
[424637347,1781025043000,-5257.394979,0.00014502,2]
[424637357,1781025043000,-24696.8764438,0.00014502,2]
[424637360,1781025043000,-1672.7364795,0.00014569,2]
[424637358,1781025043000,-202.98962328,0.00014521,10]
[424637348,1781025043000,-5257.394977,0.00014502,2]
[424637356,1781025043000,-1343741.8075614,0.00014502,2]
[424637359,1781025043000,-1148.61238259,0.00014569,2]
[424637352,1781025043000,-489.961075,0.00014502,2]
[424637350,1781025043000,-489.961075,0.00014502,2]
[424637330,1781025043000,-1613.0535,0.00014021,2]
[424637343,1781025043000,-246.816254,0.00014502,2]
[424637325,1781025043000,-4421.0,0.00013785,2]
[424637301,1781025043000,-1945.16112402,0.00013699,2]
[424637324,1781025043000,-500.0,0.00013753,2]
[424637303,1781025043000,-1945.16112402,0.00013699,2]
[424637299,1781025043000,-1945.16112402,0.00013699,2]
[424637306,1781025043000,-1945.16112402,0.00013699,2]
[424637300,1781025043000,-1945.16112402,0.00013699,2]
[424637302,1781025043000,-1945.16112402,0.00013699,2]
[424637304,1781025043000,-1945.16112402,0.00013699,2]
[424637305,1781025043000,-1945.16112402,0.00013699,2]
[424637307,1781025043000,-1945.16112402,0.00013699,2]
[424637310,1781025043000,-1945.16112402,0.00013699,2]
[424637309,1781025043000,-1945.16112402,0.00013699,2]
[424637314,1781025043000,-1945.16112402,0.00013699,2]
[424637312,1781025043000,-1945.16112402,0.00013699,2]
[424637329,1781025043000,-1107.63007,0.00014021,2]
[424637316,1781025043000,-1945.16112402,0.00013699,2]
[424637313,1781025043000,-1945.16112402,0.00013699,2]
[424637308,1781025043000,-1945.16112402,0.00013699,2]
[424637319,1781025043000,-160.0,0.000137,2]
[424637311,1781025043000,-1945.16112402,0.00013699,2]
[424637315,1781025043000,-1945.16112402,0.00013699,2]
[424637318,1781025043000,-151.0,0.00013699,2]
[424637321,1781025043000,-150.0,0.000137,2]
[424637332,1781025043000,-1959.5526623,0.00014111,2]
[424637320,1781025043000,-714.29,0.000137,2]
[424637331,1781025043000,-160.0,0.000141,2]
[424637322,1781025043000,-150.0,0.000137,2]
[424637323,1781025043000,-278.26030635,0.000137,2]
[424637317,1781025043000,-151.0,0.00013699,2]
[424637351,1781025043000,-489.961075,0.00014502,2]
[424637355,1781025043000,-151.0,0.00014502,2]
[424637361,1781025043000,-500.0,0.00014712,2]
[424637392,1781025043000,-957.15,0.00015,2]
[424637400,1781025043000,-621.5,0.00015,2]
[424637402,1781025043000,-2000.0,0.00015,2]
[424637409,1781025043000,-2000.0,0.00015,2]
[424637403,1781025043000,-2000.0,0.00015,2]
[424637410,1781025043000,-2000.0,0.00015,2]
[424637411,1781025043000,-2000.0,0.00015,2]
[424637412,1781025043000,-2000.0,0.00015,2]
[424637401,1781025043000,-2000.0,0.00015,2]
[424637406,1781025043000,-2000.0,0.00015,2]
[424637404,1781025043000,-2000.0,0.00015,2]
[424637408,1781025043000,-2000.0,0.00015,2]
[424637388,1781025043000,-1000.0,0.00015,2]
[424637405,1781025043000,-2000.0,0.00015,2]
[424637415,1781025043000,-2000.0,0.00015,2]
[424637416,1781025043000,-2000.0,0.00015,2]
[424637422,1781025043000,-2000.0,0.00015,2]
[424637414,1781025043000,-2000.0,0.00015,2]
[424637423,1781025043000,-2000.0,0.00015,2]
[424637418,1781025043000,-1933.18,0.00015,2]
[424637421,1781025043000,-2000.0,0.00015,2]
[424637417,1781025043000,-2000.0,0.00015,2]
[424637419,1781025043000,-2000.0,0.00015,2]
[424637420,1781025043000,-2000.0,0.00015,2]
[424637424,1781025043000,-2000.0,0.00015,2]
[424637354,1781025043000,-151.0,0.00014502,2]
[424637413,1781025043000,-2000.0,0.00015,2]
[424637390,1781025043000,-1000.0,0.00015,2]
[424637407,1781025043000,-2000.0,0.00015,2]
[424637399,1781025043000,-1035.83,0.00015,2]
[424637398,1781025043000,-485.99,0.00015,2]
[424637364,1781025043000,-156.0,0.000149,3]
[424637365,1781025043000,-714.29,0.000149,2]
[424637363,1781025043000,-300.0,0.000148,5]
[424637368,1781025043000,-1000.0,0.000149,2]
[424637371,1781025043000,-1122.7640754,0.00014998,2]
[424637367,1781025043000,-5883.15052574,0.000149,2]
[424637369,1781025043000,-291.57897667,0.00014908,2]
[424637370,1781025043000,-216.7152,0.00014997,2]
[424637366,1781025043000,-300.0,0.000149,5]
[424637373,1781025043000,-300.0,0.00014999,2]
[424637382,1781025043000,-351.8340851,0.00015,2]
[424637381,1781025043000,-428.91431786,0.00015,2]
[424637372,1781025043000,-2000.0,0.00014999,2]
[424637362,1781025043000,-156.0,0.000148,3]
[424637394,1781025043000,-1000.0,0.00015,2]
[424637374,1781025043000,-300.0,0.00014999,2]
[424637386,1781025043000,-4596160.75965045,0.00015,2]
[424637397,1781025043000,-2000.0,0.00015,2]
[424637384,1781025043000,-2200.009998,0.00015,2]
[424637395,1781025043000,-232.14,0.00015,2]
[424637396,1781025043000,-739.29,0.00015,2]
[424637377,1781025043000,-666.0,0.00014999,2]
[424637378,1781025043000,-300.0,0.00014999,2]
[424637380,1781025043000,-1573961.63162942,0.00015,2]
[424637376,1781025043000,-300.0,0.00014999,2]
[424637375,1781025043000,-300.0,0.00014999,2]
[424637379,1781025043000,-666.0,0.00014999,2]
[424637462,1781025044000,-2000.0,0.00015,2]
[424637465,1781025044000,-1678.74,0.00015,2]
[424637463,1781025044000,-2000.0,0.00015,2]
[424637464,1781025044000,-2000.0,0.00015,2]
[424637460,1781025044000,-150.0,0.00015,2]
[424637452,1781025044000,-2000.0,0.00015,2]
[424637455,1781025044000,-2000.0,0.00015,2]
[424637454,1781025044000,-2000.0,0.00015,2]
[424637456,1781025044000,-2000.0,0.00015,2]
[424637453,1781025044000,-2000.0,0.00015,2]
[424637467,1781025044000,-1000.0,0.00015,2]
[424637461,1781025044000,-2000.0,0.00015,2]
[424637470,1781025044000,-1000.0,0.00015,2]
[424637483,1781025044000,-1000.0,0.00015,2]
[424637469,1781025044000,-1000.0,0.00015,2]
[424637471,1781025044000,-1000.0,0.00015,2]
[424637473,1781025044000,-1000.0,0.00015,2]
[424637484,1781025044000,-1000.0,0.00015,2]
[424637472,1781025044000,-1000.0,0.00015,2]
[424637476,1781025044000,-1000.0,0.00015,2]
[424637475,1781025044000,-1000.0,0.00015,2]
[424637482,1781025044000,-1000.0,0.00015,2]
[424637481,1781025044000,-1000.0,0.00015,2]
[424637478,1781025044000,-1000.0,0.00015,2]
[424637474,1781025044000,-1000.0,0.00015,2]
[424637480,1781025044000,-1000.0,0.00015,2]
[424637468,1781025044000,-1000.0,0.00015,2]
[424637450,1781025044000,-2000.0,0.00015,2]
[424637479,1781025044000,-1000.0,0.00015,2]
[424637459,1781025044000,-1981.25,0.00015,2]
[424637425,1781025044000,-2000.0,0.00015,2]
[424637426,1781025044000,-972.16,0.00015,2]
[424637427,1781025044000,-2000.0,0.00015,2]
[424637428,1781025044000,-2000.0,0.00015,2]
[424637432,1781025044000,-2000.0,0.00015,2]
[424637433,1781025044000,-2000.0,0.00015,2]
[424637431,1781025044000,-983.29,0.00015,2]
[424637429,1781025044000,-2000.0,0.00015,2]
[424637430,1781025044000,-2000.0,0.00015,2]
[424637434,1781025044000,-2000.0,0.00015,2]
[424637437,1781025044000,-2000.0,0.00015,2]
[424637435,1781025044000,-2000.0,0.00015,2]
[424637438,1781025044000,-2000.0,0.00015,2]
[424637445,1781025044000,-2000.0,0.00015,2]
[424637443,1781025044000,-2000.0,0.00015,2]
[424637439,1781025044000,-2000.0,0.00015,2]
[424637440,1781025044000,-2000.0,0.00015,2]
[424637442,1781025044000,-2000.0,0.00015,2]
[424637447,1781025044000,-2000.0,0.00015,2]
[424637444,1781025044000,-2000.0,0.00015,2]
[424637436,1781025044000,-2000.0,0.00015,2]
[424637446,1781025044000,-2000.0,0.00015,2]
[424637441,1781025044000,-2000.0,0.00015,2]
[424637449,1781025044000,-2000.0,0.00015,2]
[424637458,1781025044000,-2000.0,0.00015,2]
[424637451,1781025044000,-714.99,0.00015,2]
[424637457,1781025044000,-2000.0,0.00015,2]
[424637448,1781025044000,-2000.0,0.00015,2]
[424637477,1781025044000,-1000.0,0.00015,2]
[424637466,1781025044000,-1000.0,0.00015,2]
[424637488,1781025044000,-1000.0,0.00015,2]
[424637517,1781025044000,-1000.0,0.00015,2]
[424637518,1781025044000,-1000.0,0.00015,2]
[424637516,1781025044000,-1000.0,0.00015,2]
[424637522,1781025044000,-1000.0,0.00015,2]
[424637532,1781025044000,-1000.0,0.00015,2]
[424637533,1781025044000,-1000.0,0.00015,2]
[424637523,1781025044000,-1000.0,0.00015,2]
[424637527,1781025044000,-1000.0,0.00015,2]
[424637521,1781025044000,-1000.0,0.00015,2]
[424637524,1781025044000,-1000.0,0.00015,2]
[424637525,1781025044000,-1000.0,0.00015,2]
[424637526,1781025044000,-1000.0,0.00015,2]
[424637528,1781025044000,-1000.0,0.00015,2]
[424637530,1781025044000,-1000.0,0.00015,2]
[424637531,1781025044000,-1000.0,0.00015,2]
[424637529,1781025044000,-696.47,0.00015,2]
[424637534,1781025044000,-1000.0,0.00015,2]
[424637536,1781025044000,-1000.0,0.00015,2]
[424637537,1781025044000,-1000.0,0.00015,2]
[424637538,1781025044000,-1000.0,0.00015,2]
[424637543,1781025044000,-183.12,0.00015,2]
[424637540,1781025044000,-1000.0,0.00015,2]
[424637541,1781025044000,-217.87,0.00015,2]
[424637535,1781025044000,-1000.0,0.00015,2]
[424637539,1781025044000,-1000.0,0.00015,2]
[424637542,1781025044000,-274.68,0.00015,2]
[424637485,1781025044000,-1000.0,0.00015,2]
[424637519,1781025044000,-1000.0,0.00015,2]
[424637520,1781025044000,-1000.0,0.00015,2]
[424637545,1781025044000,-151.0,0.00015,2]
[424637515,1781025044000,-1000.0,0.00015,2]
[424637514,1781025044000,-1000.0,0.00015,2]
[424637487,1781025044000,-1000.0,0.00015,2]
[424637490,1781025044000,-1000.0,0.00015,2]
[424637489,1781025044000,-1000.0,0.00015,2]
[424637496,1781025044000,-1000.0,0.00015,2]
[424637491,1781025044000,-1000.0,0.00015,2]
[424637486,1781025044000,-1000.0,0.00015,2]
[424637493,1781025044000,-1000.0,0.00015,2]
[424637494,1781025044000,-1000.0,0.00015,2]
[424637495,1781025044000,-1000.0,0.00015,2]
[424637498,1781025044000,-1000.0,0.00015,2]
[424637508,1781025044000,-1000.0,0.00015,2]
[424637500,1781025044000,-1000.0,0.00015,2]
[424637497,1781025044000,-1000.0,0.00015,2]
[424637492,1781025044000,-1000.0,0.00015,2]
[424637499,1781025044000,-1000.0,0.00015,2]
[424637501,1781025044000,-1000.0,0.00015,2]
[424637511,1781025044000,-1000.0,0.00015,2]
[424637513,1781025044000,-1000.0,0.00015,2]
[424637510,1781025044000,-871.52,0.00015,2]
[424637509,1781025044000,-1000.0,0.00015,2]
[424637506,1781025044000,-1000.0,0.00015,2]
[424637512,1781025044000,-1000.0,0.00015,2]
[424637503,1781025044000,-1000.0,0.00015,2]
[424637504,1781025044000,-1000.0,0.00015,2]
[424637502,1781025044000,-1000.0,0.00015,2]
[424637544,1781025044000,-300.0,0.00015,2]
[424637505,1781025044000,-1000.0,0.00015,2]
[424637507,1781025044000,-1000.0,0.00015,2]
[424637585,1781025045000,-616.582569,0.00015068,2]
[424637590,1781025045000,-616.582569,0.00015068,2]
[424637586,1781025045000,-616.582569,0.00015068,2]
[424637589,1781025045000,-616.582569,0.00015068,2]
[424637576,1781025045000,-300.0,0.00015067,2]
[424637581,1781025045000,-616.582569,0.00015068,2]
[424637575,1781025045000,-300.0,0.00015067,2]
[424637579,1781025045000,-176.0,0.00015068,2]
[424637588,1781025045000,-616.582569,0.00015068,2]
[424637574,1781025045000,-300.0,0.00015067,2]
[424637583,1781025045000,-616.582569,0.00015068,2]
[424637578,1781025045000,-500.65771441,0.00015068,2]
[424637600,1781025045000,-500.65771441,0.00015079,2]
[424637587,1781025045000,-616.582569,0.00015068,2]
[424637582,1781025045000,-616.582569,0.00015068,2]
[424637591,1781025045000,-616.582569,0.00015068,2]
[424637592,1781025045000,-616.582569,0.00015068,2]
[424637602,1781025045000,-2526.85674497,0.00015113,2]
[424637601,1781025045000,-3513.91459123,0.00015084,2]
[424637595,1781025045000,-616.582569,0.00015068,2]
[424637593,1781025045000,-616.582569,0.00015068,2]
[424637597,1781025045000,-616.582569,0.00015068,2]
[424637603,1781025045000,-1191.11104074,0.00015117,2]
[424637577,1781025045000,-666.0,0.00015067,2]
[424637594,1781025045000,-616.582569,0.00015068,2]
[424637584,1781025045000,-616.582569,0.00015068,2]
[424637572,1781025045000,-500.65771441,0.00015061,2]
[424637560,1781025045000,-553.75,0.00015,2]
[424637571,1781025045000,-2735.48133725,0.0001505,2]
[424637598,1781025045000,-616.582569,0.00015068,2]
[424637557,1781025045000,-500.0,0.00015,2]
[424637547,1781025045000,-151.0,0.00015,2]
[424637546,1781025045000,-151.0,0.00015,2]
[424637548,1781025045000,-223.89524,0.00015,2]
[424637549,1781025045000,-151.0,0.00015,2]
[424637554,1781025045000,-1000.0,0.00015,2]
[424637555,1781025045000,-600.0,0.00015,2]
[424637551,1781025045000,-187.065323,0.00015,2]
[424637553,1781025045000,-1000.0,0.00015,2]
[424637552,1781025045000,-1000.0,0.00015,2]
[424637556,1781025045000,-1000.0,0.00015,2]
[424637561,1781025045000,-332.24,0.00015,2]
[424637562,1781025045000,-1827.94,0.00015,2]
[424637558,1781025045000,-900.0,0.00015,2]
[424637559,1781025045000,-1328.99,0.00015,2]
[424637568,1781025045000,-3088.94847991,0.0001504,2]
[424637566,1781025045000,-500.65771441,0.00015016,2]
[424637565,1781025045000,-500.65771441,0.00015008,2]
[424637563,1781025045000,-761.64,0.00015,2]
[424637567,1781025045000,-300.0,0.00015039,2]
[424637564,1781025045000,-456.98,0.00015,2]
[424637580,1781025045000,-616.582569,0.00015068,2]
[424637570,1781025045000,-151.0,0.0001504,2]
[424637569,1781025045000,-151.0,0.0001504,2]
[424637573,1781025045000,-300.0,0.00015067,2]
[424637596,1781025045000,-616.582569,0.00015068,2]
[424637550,1781025045000,-151.0,0.00015,2]
[424637604,1781025045000,-1734.62772924,0.00015117,2]
[424637631,1781025045000,-500.65771441,0.00015255,2]
[424637632,1781025045000,-2526.85674497,0.00015259,2]
[424637639,1781025045000,-1517.64,0.000153,2]
[424637640,1781025045000,-177.32,0.000153,2]
[424637636,1781025045000,-500.65771441,0.00015289,2]
[424637643,1781025045000,-2689.0,0.00015324,2]
[424637654,1781025045000,-2275.878506,0.00015807,2]
[424637653,1781025045000,-419.50355664,0.000158,5]
[424637652,1781025045000,-300.0,0.000157,2]
[424637647,1781025045000,-300.0,0.000155,2]
[424637648,1781025045000,-300.0,0.000156,2]
[424637649,1781025045000,-1235.18214925,0.00015665,2]
[424637645,1781025045000,-2000.0,0.00015343,7]
[424637651,1781025045000,-300.0,0.00015696,2]
[424637655,1781025045000,-500.0,0.00015896,2]
[424637664,1781025045000,-249.52,0.00016,2]
[424637657,1781025045000,-150.0,0.00016,2]
[424637658,1781025045000,-150.0,0.00016,2]
[424637659,1781025045000,-150.0,0.00016,2]
[424637663,1781025045000,-150.0,0.00016,2]
[424637661,1781025045000,-150.0,0.00016,2]
[424637662,1781025045000,-150.0,0.00016,2]
[424637656,1781025045000,-779.39793254,0.00016,2]
[424637660,1781025045000,-150.0,0.00016,2]
[424637599,1781025045000,-616.582563,0.00015068,2]
[424637634,1781025045000,-500.65771441,0.00015264,2]
[424637630,1781025045000,-2526.85674497,0.00015249,2]
[424637650,1781025045000,-1798.80895522,0.00015665,2]
[424637635,1781025045000,-500.65771441,0.00015289,2]
[424637607,1781025045000,-500.65771441,0.00015132,2]
[424637629,1781025045000,-300.0,0.00015231,2]
[424637609,1781025045000,-300.0,0.00015142,2]
[424637605,1781025045000,-500.65771441,0.00015118,2]
[424637608,1781025045000,-300.0,0.00015142,2]
[424637611,1781025045000,-15000.0,0.00015143,2]
[424637606,1781025045000,-500.65771441,0.00015124,2]
[424637610,1781025045000,-300.0,0.00015142,2]
[424637614,1781025045000,-361.76113529,0.00015168,2]
[424637612,1781025045000,-2622.70938445,0.00015161,2]
[424637616,1781025045000,-3513.91459123,0.00015169,2]
[424637622,1781025045000,-500.65771441,0.00015201,2]
[424637615,1781025045000,-13247.87736855,0.00015169,2]
[424637613,1781025045000,-300.0,0.00015168,2]
[424637621,1781025045000,-2735.48133725,0.00015198,2]
[424637626,1781025045000,-300.0,0.00015231,2]
[424637623,1781025045000,-666.0,0.00015231,2]
[424637617,1781025045000,-500.65771441,0.00015183,2]
[424637627,1781025045000,-300.0,0.00015231,2]
[424637624,1781025045000,-300.0,0.00015231,2]
[424637620,1781025045000,-500.65771441,0.00015196,2]
[424637618,1781025045000,-300.0,0.00015185,2]
[424637637,1781025045000,-2526.85674497,0.00015291,2]
[424637625,1781025045000,-300.0,0.00015231,2]
[424637628,1781025045000,-666.0,0.00015231,2]
[424637619,1781025045000,-15000.0,0.00015186,2]
[424637633,1781025045000,-500.65771441,0.00015262,2]
[424637706,1781025046000,-170.21291421,0.00016111,2]
[424637704,1781025046000,-4378.76695744,0.0001611,15]
[424637699,1781025046000,-578.60148306,0.00016093,2]
[424637712,1781025046000,-300.0,0.00016115,2]
[424637703,1781025046000,-150.0,0.00016102,2]
[424637709,1781025046000,-300.0,0.00016115,2]
[424637697,1781025046000,-150.0,0.00016081,2]
[424637698,1781025046000,-170.21291421,0.00016093,2]
[424637696,1781025046000,-150.0,0.00016075,2]
[424637701,1781025046000,-201.33076395,0.000161,7]
[424637716,1781025046000,-300.0,0.00016115,2]
[424637702,1781025046000,-150.0,0.000161,2]
[424637713,1781025046000,-666.0,0.00016115,2]
[424637722,1781025046000,-170.21291421,0.00016128,2]
[424637719,1781025046000,-10282.53,0.00016116,2]
[424637714,1781025046000,-300.0,0.00016115,2]
[424637707,1781025046000,-578.60148306,0.00016111,2]
[424637718,1781025046000,-8281.88,0.00016116,2]
[424637711,1781025046000,-300.0,0.00016115,2]
[424637721,1781025046000,-150.0,0.00016123,2]
[424637730,1781025046000,-150.0,0.00016159,2]
[424637731,1781025046000,-170.21291421,0.00016164,2]
[424637729,1781025046000,-150.0,0.00016147,2]
[424637732,1781025046000,-578.60148306,0.00016164,2]
[424637720,1781025046000,-150.0,0.0001612,2]
[424637723,1781025046000,-578.60148306,0.00016128,2]
[424637700,1781025046000,-150.0,0.00016099,2]
[424637710,1781025046000,-300.0,0.00016115,2]
[424637694,1781025046000,-170.21291421,0.00016075,2]
[424637668,1781025046000,-150.3730817,0.00016003,2]
[424637693,1781025046000,-150.0,0.00016071,2]
[424637666,1781025046000,-300.0,0.00016,2]
[424637665,1781025046000,-150.0,0.00016,2]
[424637727,1781025046000,-170.21291421,0.00016146,2]
[424637678,1781025046000,-578.60148306,0.00016003,2]
[424637667,1781025046000,-300.0,0.00016,2]
[424637679,1781025046000,-150.086276,0.00016003,2]
[424637669,1781025046000,-150.0,0.00016003,2]
[424637670,1781025046000,-150.0,0.00016003,2]
[424637671,1781025046000,-150.0,0.00016003,2]
[424637674,1781025046000,-150.0,0.00016003,2]
[424637675,1781025046000,-150.0,0.00016003,2]
[424637672,1781025046000,-150.0,0.00016003,2]
[424637676,1781025046000,-150.0,0.00016003,2]
[424637695,1781025046000,-578.60148306,0.00016075,2]
[424637673,1781025046000,-170.21291421,0.00016003,2]
[424637680,1781025046000,-170.21291421,0.00016021,2]
[424637683,1781025046000,-150.0,0.00016027,2]
[424637684,1781025046000,-150.0,0.00016036,2]
[424637687,1781025046000,-150.0,0.00016042,2]
[424637682,1781025046000,-150.0,0.00016022,2]
[424637685,1781025046000,-170.21291421,0.00016039,2]
[424637686,1781025046000,-578.60148306,0.00016039,2]
[424637689,1781025046000,-170.21291421,0.00016057,2]
[424637688,1781025046000,-150.0,0.00016051,2]
[424637681,1781025046000,-578.60148306,0.00016021,2]
[424637690,1781025046000,-578.60148306,0.00016057,2]
[424637692,1781025046000,-150.0,0.00016069,2]
[424637691,1781025046000,-150.0,0.00016061,2]
[424637677,1781025046000,-150.0,0.00016003,2]
[424637725,1781025046000,-150.0,0.0001614,2]
[424637747,1781025046000,-150.0,0.00016208,2]
[424637724,1781025046000,-150.0,0.00016134,2]
[424637765,1781025046000,-170.21291421,0.00016272,2]
[424637771,1781025046000,-150.0,0.00016291,2]
[424637769,1781025046000,-170.21291421,0.0001629,2]
[424637761,1781025046000,-150.0,0.00016257,2]
[424637772,1781025046000,-150.0,0.00016296,2]
[424637767,1781025046000,-150.0,0.00016276,2]
[424637775,1781025046000,-170.21291421,0.00016308,2]
[424637785,1781025046000,-170.21291421,0.00016344,2]
[424637774,1781025046000,-300.0,0.000163,2]
[424637778,1781025046000,-150.0,0.00016315,2]
[424637776,1781025046000,-578.60148306,0.00016308,2]
[424637777,1781025046000,-150.0,0.00016315,2]
[424637779,1781025046000,-170.21291421,0.00016326,2]
[424637784,1781025046000,-200.0,0.0001634,2]
[424637782,1781025046000,-150.0,0.00016335,2]
[424637780,1781025046000,-578.60148306,0.00016326,2]
[424637783,1781025046000,-150.0,0.00016339,2]
[424637781,1781025046000,-150.0,0.00016332,2]
[424637728,1781025046000,-578.60148306,0.00016146,2]
[424637788,1781025046000,-150.0,0.00016354,2]
[424637789,1781025046000,-300.0,0.00016356,2]
[424637790,1781025046000,-300.0,0.00016356,2]
[424637787,1781025046000,-150.0,0.00016345,2]
[424637792,1781025046000,-300.0,0.00016356,2]
[424637791,1781025046000,-300.0,0.00016356,2]
[424637793,1781025046000,-697.11885021,0.00016356,2]
[424637794,1781025046000,-300.0,0.00016356,2]
[424637763,1781025046000,-150.0,0.00016266,2]
[424637760,1781025046000,-578.60148306,0.00016254,2]
[424637786,1781025046000,-578.60148306,0.00016344,2]
[424637766,1781025046000,-578.60148306,0.00016272,2]
[424637768,1781025046000,-150.0,0.00016276,2]
[424637726,1781025046000,-150.0,0.0001614,2]
[424637733,1781025046000,-150.0,0.00016167,2]
[424637736,1781025046000,-170.21291421,0.00016182,2]
[424637735,1781025046000,-150.0,0.00016179,2]
[424637744,1781025046000,-170.21291421,0.000162,2]
[424637737,1781025046000,-578.60148306,0.00016182,2]
[424637745,1781025046000,-150.0,0.000162,2]
[424637746,1781025046000,-578.60148306,0.000162,2]
[424637748,1781025046000,-1280.88388877,0.00016213,2]
[424637739,1781025046000,-150.0,0.00016195,2]
[424637743,1781025046000,-150.0,0.000162,2]
[424637741,1781025046000,-150.0,0.00016198,2]
[424637750,1781025046000,-150.0,0.00016218,2]
[424637734,1781025046000,-150.0,0.00016171,2]
[424637751,1781025046000,-170.21291421,0.00016218,2]
[424637764,1781025046000,-150.0,0.00016267,2]
[424637749,1781025046000,-1865.36488656,0.00016213,2]
[424637770,1781025046000,-578.60148306,0.0001629,2]